bitfinex/quotes_ETHUSD_20240730
["timestamp","ask_amount","ask_price","bid_price","bid_amount"]
[1722380097290,3.04664,3282.3,3282.1,1.0]
[1722380097495,0.0405336,3282.2,3282.1,1.0]
[1722380097801,3.04664,3282.3,3282.1,1.0]
[1722380097994,0.03912449,3282.2,3282.1,1.0]
[1722380098194,9.40478711,3282.4,3282.1,1.0]
[1722380098441,2.64674078,3282.7,3282.1,6.43974]
[1722380098442,1.9595931,3282.3,3282.1,6.43974]
[1722380098641,1.9595931,3282.3,3282.2,3.690704]
[1722380098814,0.03913534,3282.3,3282.2,3.690704]
[1722380099228,1.920333,3282.3,3282.2,0.643974]
[1722380099509,1.95803473,3282.3,3282.2,0.643974]
[1722380100614,1.95803473,3282.3,3282.2,6.79836474]
[1722380100811,1.63807717,3282.3,3282.2,6.737434]
[1722380101020,0.03770173,3282.3,3282.2,6.737434]
[1722380101198,1.6004062,3282.3,3282.2,6.737434]
[1722380101412,1.92048365,3282.7,3282.4,3.04651]
[1722380101633,0.03779557,3282.6,3282.4,6.09297]
[1722380101938,0.03779557,3282.6,3282.4,3.04648]
[1722380102231,0.03779557,3282.6,3282.3,4.1666934]
[1722380102537,0.03746727,3282.5,3282.4,0.41666934]
[1722380102707,0.03746727,3282.5,3282.4,3.46320934]
[1722380102905,1.92034795,3282.7,3282.5,3.04645]
[1722380103436,0.03749957,3282.6,3282.5,3.04645]
[1722380103739,0.03749957,3282.6,3282.5,3.69742293]
[1722380103943,0.03749957,3282.6,3282.5,0.65097293]
[1722380104910,1.92001219,3282.7,3282.5,0.65097293]
[1722380105109,1.95760864,3282.6,3282.5,0.65097293]
[1722380105334,1.95760864,3282.6,3282.1,6.43977]
[1722380105335,1.95760864,3282.6,3282.1,6.43982]
[1722380105541,1.92009374,3282.4,3282.1,6.43982]
[1722380106107,0.03745837,3282.3,3282.1,6.43982]
[1722380107203,0.03745837,3282.3,3282.2,3.04673]
[1722380107634,1.92009374,3282.4,3282.2,3.04673]
[1722380107821,1.92022109,3282.4,3282.3,0.948655]
[1722380108230,1.92022109,3282.5,3282.3,3.995295]
[1722380108436,1.92022109,3282.6,3282.3,3.995295]
[1722380108607,1.92022109,3282.6,3282.4,3.04655]
[1722380108804,1.92022109,3282.6,3282.4,3.7507345]
[1722380109445,1.92022109,3282.7,3282.6,3.04636]
[1722380109652,1.92022109,3282.8,3282.6,3.04636]
[1722380109803,1.92022109,3283.0,3282.9,3.04608]
[1722380110002,2.24025793,3283.2,3282.9,3.655245]
[1722380110247,1.91962729,3283.0,3282.9,7.16309]
[1722380110404,1.91962729,3283.4,3283.3,3.04571]
[1722380110627,1.91962729,3283.6,3283.5,3.04553]
[1722380110840,1.91962729,3283.8,3283.5,3.04553]
[1722380111061,1.91839479,3283.8,3283.4,2.409]
[1722380111219,1.91839479,3283.6,3283.4,2.409]
[1722380111762,1.91839479,3283.7,3283.4,2.409]
[1722380111946,1.91839479,3283.7,3283.4,5.45456]
[1722380112145,1.91839479,3283.8,3283.4,6.304581]
[1722380112354,1.59731928,3283.5,3283.4,5.45456]
[1722380112855,1.91839479,3283.8,3283.4,5.45456]
[1722380113253,1.59732372,3283.5,3283.4,5.45456]
[1722380113948,1.59732372,3283.5,3283.4,2.409]
[1722380114352,3.04517,3283.9,3283.4,2.409]
[1722380114620,1.59676859,3283.5,3283.4,2.409]
[1722380114826,1.59676859,3283.5,3283.4,3.259049]
[1722380115358,1.59676859,3283.6,3283.4,3.259049]
[1722380115746,1.59676859,3283.6,3283.5,3.04553]
[1722380115934,1.59676859,3283.7,3283.5,3.04553]
[1722380116134,3.04499,3284.1,3283.5,3.04553]
[1722380116135,1.59676859,3283.8,3283.5,3.9805489]
[1722380116575,1.59676859,3283.7,3283.5,3.9805489]
[1722380117267,1.59676859,3283.7,3283.5,0.9350189]
[1722380117678,1.59513261,3283.7,3283.5,0.9350189]
[1722380119774,1.59513261,3283.6,3283.5,0.9350189]
[1722380120078,1.59513261,3283.7,3283.4,2.409]
[1722380120895,3.04531,3283.8,3283.4,2.409]
[1722380121061,1.59435893,3283.7,3283.4,2.409]
[1722380121263,1.59435893,3283.7,3283.4,2.95448]
[1722380121477,1.59427328,3283.7,3283.4,2.95448]
[1722380123092,3.04531,3283.8,3283.4,2.95448]
[1722380123261,1.59393774,3283.7,3283.4,2.95448]
[1722380123463,1.59393774,3283.8,3283.5,0.600019]
[1722380124273,0.03692312,3283.7,3283.5,0.600019]
[1722380124788,1.59376499,3283.8,3283.5,0.600019]
[1722380124946,0.03681662,3283.6,3283.5,0.600019]
[1722380125143,1.59376499,3283.8,3283.5,0.600019]
[1722380125392,1.59376499,3283.8,3283.6,0.6600119]
[1722380127270,4.63893499,3283.9,3283.6,0.6600119]
[1722380127498,3.04517,3283.9,3283.4,6.0001]
[1722380127701,4.63854318,3283.9,3283.4,6.0001]
[1722380128212,1.59337318,3283.8,3283.4,6.0001]
[1722380128517,1.59337318,3283.8,3283.4,6.06100496]
[1722380129312,3.04558,3283.5,3283.0,9.6875]
[1722380129912,3.04558,3283.5,3283.0,2.3375]
[1722380130176,3.04558,3283.5,3283.0,5.38347]
[1722380130970,1.071,3283.6,3283.1,3.04584]
[1722380131599,4.63889195,3283.7,3283.1,3.04584]
[1722380132108,3.0454,3283.7,3283.1,3.04584]
[1722380132315,4.63889195,3283.7,3283.1,3.04584]
[1722380133018,4.63889195,3283.7,3283.2,3.0458]
[1722380133019,1.59349195,3283.7,3283.2,3.0458]
[1722380134228,3.04536,3283.7,3283.0,2.875847]
[1722380134437,4.63907426,3283.6,3283.1,3.04587]
[1722380134742,0.03706739,3283.5,3283.1,3.04587]
[1722380135307,7.68451039,3283.7,3283.1,3.9426447]
[1722380135604,0.03696089,3283.4,3283.1,3.9426447]
[1722380135801,7.68451039,3283.7,3283.1,3.9426447]
[1722380136035,0.03693921,3283.3,3283.1,3.9426447]
[1722380136213,4.63910039,3283.7,3283.1,3.9426447]
[1722380136411,4.63925267,3283.7,3283.1,3.9426447]
[1722380136615,0.03705726,3283.6,3283.1,3.9426447]
[1722380137341,0.03705726,3283.6,3283.2,0.68184917]
[1722380137712,1.63108071,3283.6,3283.2,0.68184917]
[1722380139211,1.59402345,3283.5,3283.4,0.2]
[1722380139550,0.03699317,3283.5,3283.4,0.2]
[1722380141170,1.59499702,3283.5,3283.4,0.2]
[1722380141377,0.03705171,3283.5,3283.4,0.2]
[1722380141775,0.03705171,3283.5,3283.4,3.57019]
[1722380142082,0.03705171,3283.5,3283.4,5.92919]
[1722380142380,1.59499702,3283.6,3283.4,5.92919]
[1722380142675,0.03711838,3283.5,3283.4,5.99009718]
[1722380143256,1.59499702,3283.6,3283.5,3.04553]
[1722380143777,0.03718018,3283.6,3283.5,6.09106]
[1722380144079,1.59499702,3284.0,3283.9,3.04515]
[1722380144287,1.91399643,3284.3,3284.0,3.04499]
[1722380144288,1.91587277,3284.3,3284.0,3.04499]
[1722380144440,1.91587277,3284.4,3284.1,3.04496]
[1722380144643,1.91560992,3284.4,3284.1,3.04496]
[1722380144879,1.59634083,3284.2,3284.1,3.04496]
[1722380145381,1.59634083,3284.2,3284.1,3.889871]
[1722380146466,1.59634083,3284.3,3284.1,3.889871]
[1722380146671,1.59634083,3284.2,3284.1,3.04496]
[1722380147075,1.59634083,3284.3,3283.9,5.40407]
[1722380147260,1.59634083,3284.2,3283.9,5.40407]
[1722380147453,3.0446,3284.5,3283.9,5.46496552]
[1722380147783,1.59599965,3284.1,3283.9,2.359]
[1722380147943,1.5961007,3284.0,3283.9,2.359]
[1722380149479,1.59622052,3284.0,3283.9,2.359]
[1722380149778,1.5962341,3284.0,3283.9,5.944577]
[1722380150392,1.5962341,3284.1,3283.9,5.944577]
[1722380151057,1.59626334,3284.1,3283.9,5.944577]
[1722380152486,1.59626334,3284.0,3283.9,5.944577]
[1722380153258,1.59626334,3284.0,3283.9,5.40415]
[1722380154248,0.03592926,3284.0,3283.9,5.40415]
[1722380154660,0.03585506,3284.0,3283.9,5.40415]
[1722380155088,1.91674911,3284.2,3283.9,5.40415]
[1722380155591,0.03590853,3284.1,3283.9,5.40415]
[1722380156406,1.95265764,3284.1,3283.9,2.359]
[1722380156917,1.95265764,3284.1,3283.7,3.04526]
[1722380157218,1.91674911,3284.0,3283.6,12.81822]
[1722380157420,1.59828195,3283.7,3283.6,12.81822]
[1722380157583,3.08087853,3284.1,3283.6,12.81822]
[1722380157584,0.035897,3283.9,3283.6,7.162061]
[1722380157789,3.04497,3284.1,3283.6,5.46822]
[1722380157790,1.59824079,3283.7,3283.6,5.46822]
[1722380158313,1.63407325,3283.7,3283.6,5.46822]
[1722380159521,0.03583246,3283.7,3283.6,5.46822]
[1722380159821,1.59824079,3283.7,3283.6,5.46822]
[1722380160028,1.63399904,3283.7,3283.6,5.46822]
[1722380160174,0.03575825,3283.7,3283.6,6.534151]
[1722380160521,1.59815319,3283.8,3283.7,3.04534]
[1722380160904,1.5980606,3283.9,3283.8,3.04522]
[1722380161089,1.91772126,3284.1,3283.8,3.04522]
[1722380161420,1.91770895,3284.1,3283.8,3.04522]
[1722380161588,1.91770895,3284.1,3283.8,4.0031511]
[1722380161784,1.91770895,3284.1,3283.8,0.9579311]
[1722380161985,1.91770895,3284.1,3283.7,3.04533]
[1722380162392,1.5980607,3283.8,3283.7,3.04533]
[1722380162912,1.5980607,3283.9,3283.8,3.04525]
[1722380163089,1.59797357,3283.9,3283.8,3.04525]
[1722380163295,4.11574,3284.4,3283.8,3.896591]
[1722380163531,1.91762532,3284.1,3283.8,3.896591]
[1722380164017,1.91762532,3284.2,3283.9,3.04515]
[1722380165235,1.071,3284.0,3283.5,7.35]
[1722380165530,1.59803844,3283.6,3283.5,10.39552]
[1722380165695,1.59803844,3283.7,3283.5,3.04552]
[1722380165894,1.59803844,3283.7,3283.5,3.674637]
[1722380166094,1.59803844,3283.6,3283.5,3.674637]
[1722380166490,3.04502,3284.1,3283.5,3.674637]
[1722380166828,1.59806714,3283.6,3283.5,3.04552]
[1722380167132,1.91768057,3283.8,3283.4,0.2]
[1722380167334,1.59817026,3283.5,3283.4,0.2]
[1722380167629,1.59817026,3283.5,3283.4,3.2456]
[1722380167800,1.91768057,3283.8,3283.4,3.2456]
[1722380168305,1.91768057,3283.8,3283.4,6.29116]
[1722380168509,1.59823901,3283.5,3283.4,3.24556]
[1722380169040,1.91768057,3283.8,3283.4,0.2]
[1722380169041,4.96303057,3283.7,3283.4,0.2]
[1722380169190,4.96326057,3283.5,3282.9,5.30533]
[1722380169393,1.59839551,3283.0,3282.9,3.04603]
[1722380169589,2.98868057,3283.4,3282.9,3.655258]
[1722380169590,1.59839551,3283.1,3282.9,3.655258]
[1722380169829,0.03556596,3283.0,3282.9,3.655258]
[1722380170035,1.63388867,3283.0,3282.9,3.655258]
[1722380170205,1.59832271,3283.0,3282.9,3.655258]
[1722380170404,1.63390988,3283.0,3282.9,3.655258]
[1722380170743,1.10658717,3283.0,3282.5,3.0464]
[1722380171034,1.59827656,3282.8,3282.3,5.42526]
[1722380171195,1.59827656,3282.7,3282.3,5.42526]
[1722380171398,1.63377747,3282.7,3282.4,0.542526]
[1722380171993,1.63377747,3282.7,3282.5,3.04645]
[1722380172496,0.03550091,3282.7,3282.6,3.04636]
[1722380172696,0.03550091,3282.7,3282.6,3.8169876]
[1722380172925,1.59827656,3282.9,3282.6,3.8169876]
[1722380173120,3.04575,3283.3,3282.6,3.8169876]
[1722380173331,0.03533344,3282.8,3282.7,3.04627]
[1722380173516,3.04575,3283.3,3282.7,3.73259576]
[1722380173834,1.59750304,3282.9,3282.7,3.73259576]
[1722380174198,0.03526982,3282.8,3282.7,3.73259576]
[1722380176837,1.59700294,3282.9,3282.7,3.04627]
[1722380177041,0.03531223,3282.8,3282.7,3.04627]
[1722380178575,1.59700294,3283.1,3282.8,3.04617]
[1722380179067,1.071,3283.3,3282.8,3.04617]
[1722380179068,1.59700294,3283.2,3282.8,3.04617]
[1722380179276,1.59700294,3283.1,3282.8,3.04617]
[1722380179478,1.59700294,3283.1,3282.8,3.655423]
[1722380179926,1.59628305,3283.1,3283.0,3.04593]
[1722380180130,1.59628305,3283.2,3283.0,3.04593]
[1722380183262,1.59628305,3283.2,3282.8,0.609253]
[1722380183263,1.59608263,3283.2,3282.8,0.609253]
[1722380183586,1.59608263,3283.2,3282.7,3.24623]
[1722380183587,3.04618,3282.8,3282.7,0.2]
[1722380184091,8.55696,3282.8,3282.7,0.2]
[1722380184245,8.59214042,3282.8,3282.7,0.2]
[1722380185661,8.59214042,3282.8,3282.7,0.4]
[1722380189498,10.50398045,3282.8,3282.7,0.4]
[1722380189739,10.50398049,3282.8,3282.7,0.4]
[1722380190246,11.12525047,3282.8,3282.7,0.4]
[1722380190451,9.66314042,3282.8,3282.7,0.4]
[1722380191861,3.08136042,3282.8,3282.7,0.4]
[1722380192015,0.03518042,3282.8,3282.7,0.4]
[1722380192214,1.59269259,3283.0,3282.7,0.4]
[1722380192459,0.03455964,3282.8,3282.7,0.4]
[1722380192615,4.63864259,3283.1,3282.7,0.744634]
[1722380192962,0.03457969,3282.8,3282.7,0.4]
[1722380193141,4.63866267,3283.1,3282.7,0.4]
[1722380193312,0.03457969,3282.8,3282.7,0.4]
[1722380193511,4.63866267,3283.1,3282.7,0.4]
[1722380193715,0.03457969,3282.8,3282.7,0.4]
[1722380194362,4.63866267,3283.1,3282.7,0.4]
[1722380194514,4.11684,3283.2,3282.7,0.4]
[1722380194515,0.03448351,3282.8,3282.7,6.091614]
[1722380194723,4.63847267,3283.3,3282.7,5.74697]
[1722380194912,5.70947267,3283.3,3282.7,5.74697]
[1722380195129,1.59271267,3283.3,3282.8,3.04611]
[1722380195324,0.03486171,3283.2,3282.8,3.04611]
[1722380195559,0.03486171,3283.2,3282.8,3.0461]
[1722380195744,1.59271267,3283.3,3282.9,3.04608]
[1722380195914,0.03481065,3283.1,3282.9,3.04608]
[1722380196114,1.59271267,3283.3,3282.9,4.0133022]
[1722380196315,3.04563,3283.4,3282.9,4.0133022]
[1722380196550,4.63849116,3283.4,3282.9,4.0133022]
[1722380196747,0.03491532,3283.3,3282.9,4.0133022]
[1722380197339,0.03491532,3283.3,3283.0,3.04593]
[1722380197555,1.59286116,3283.5,3283.0,3.04593]
[1722380197556,1.59286116,3283.4,3283.0,3.75794503]
[1722380197753,0.03498742,3283.3,3283.0,3.04593]
[1722380198255,0.03498742,3283.3,3282.8,3.04612]
[1722380198449,1.62784858,3283.3,3282.8,3.04612]
[1722380198658,1.62784858,3283.3,3282.8,6.09223]
[1722380198859,1.62784858,3283.3,3282.8,3.925403]
[1722380199360,4.67355858,3283.3,3282.8,3.925403]
[1722380199781,1.59286116,3283.2,3282.8,3.925403]
[1722380200082,1.62872296,3283.2,3282.8,3.925403]
[1722380201793,1.62920647,3283.2,3282.9,3.04608]
[1722380201949,0.03501349,3283.2,3283.0,0.3925373]
[1722380202150,1.59419298,3283.3,3283.0,0.3925373]
[1722380202494,0.03509083,3283.2,3283.0,0.3925373]
[1722380202872,3.0456,3283.5,3283.0,0.3925373]
[1722380203084,0.03491337,3283.1,3283.0,0.3925373]
[1722380203269,1.5943544,3283.3,3283.0,0.3925373]
[1722380203454,0.03417337,3283.1,3283.0,0.3925373]
[1722380203651,1.5943544,3283.3,3283.1,3.04582]
[1722380203877,1.5943544,3283.4,3283.2,5.66623573]
[1722380204077,1.5943544,3283.5,3283.3,3.04571]
[1722380204278,1.5943544,3283.6,3283.3,3.04571]
[1722380206192,3.04526,3283.8,3283.3,3.04571]
[1722380206396,1.59478896,3283.6,3283.3,3.04571]
[1722380206692,1.59478896,3283.6,3283.3,3.91690657]
[1722380207168,1.59478896,3283.5,3283.3,0.87119657]
[1722380207353,1.59478896,3283.4,3283.2,2.2766]
[1722380208874,1.59478896,3283.4,3283.2,5.3224]
[1722380209189,1.59478896,3283.5,3283.2,5.3224]
[1722380209358,1.59478896,3283.4,3283.3,3.0457]
[1722380209713,1.5953762,3283.5,3283.3,3.57793]
[1722380210370,1.5953762,3283.5,3283.3,0.53223]
[1722380210574,1.5953762,3283.4,3283.3,0.53223]
[1722380210771,1.5953762,3283.4,3283.2,5.3224]
[1722380210967,1.5953762,3283.4,3283.3,3.04571]
[1722380211396,1.5953762,3283.4,3283.2,5.3224]
[1722380212375,1.5953762,3283.4,3283.2,6.159238]
[1722380212784,1.5953762,3283.4,3283.2,6.159178]
[1722380213215,3.04521,3283.9,3283.3,3.04571]
[1722380213411,1.59642014,3283.4,3283.3,3.04571]
[1722380213714,1.59655869,3283.4,3283.3,3.882515]
[1722380214411,1.63043965,3283.4,3283.3,3.882515]
[1722380214708,1.63043965,3283.4,3283.3,6.928225]
[1722380214909,1.63043965,3283.4,3283.3,3.882515]
[1722380215115,0.03388096,3283.4,3283.3,3.882515]
[1722380215483,0.03388096,3283.4,3283.3,6.928225]
[1722380215875,0.03388096,3283.4,3283.3,3.882515]
[1722380216677,1.59649331,3283.6,3283.4,3.04558]
[1722380217425,1.59649331,3283.6,3283.4,3.04555]
[1722380217581,1.59649331,3283.7,3283.4,3.04555]
[1722380218514,1.59649331,3283.7,3283.4,3.9660215]
[1722380218879,1.59649331,3283.8,3283.4,3.9660215]
[1722380219082,1.59649331,3283.8,3283.4,3.04555]
[1722380219307,1.59649331,3283.6,3283.4,3.04555]
[1722380220011,1.59649331,3283.6,3283.5,0.2]
[1722380220212,1.59649331,3283.7,3283.5,0.2]
[1722380220614,1.59649331,3283.6,3283.5,0.2]
[1722380221705,1.59649331,3283.7,3283.5,0.2]
[1722380222048,1.59564912,3283.7,3283.5,0.2]
[1722380222616,1.59564912,3283.6,3283.5,0.2]
[1722380223952,1.59564912,3283.7,3283.5,0.2]
[1722380224118,1.59564912,3283.7,3283.5,0.4]
[1722380225334,1.59536111,3283.7,3283.5,0.4]
[1722380225643,4.11617,3283.9,3283.5,0.4]
[1722380225852,1.59532384,3283.6,3283.5,0.4]
[1722380226070,1.59532384,3283.7,3283.5,0.4]
[1722380227301,4.11617,3283.9,3283.5,0.4]
[1722380227620,1.59517574,3283.7,3283.5,0.4]
[1722380228147,1.59517574,3283.7,3283.5,0.6]
[1722380228564,1.59502272,3283.8,3283.7,3.0453]
[1722380228707,1.59502272,3283.8,3283.7,5.5243]
[1722380228909,1.59502272,3283.9,3283.7,5.5243]
[1722380229209,1.62811176,3283.8,3283.7,5.5243]
[1722380229638,1.62811176,3283.8,3283.7,2.479]
[1722380231750,0.03308904,3283.8,3283.7,2.479]
[1722380231966,1.62838429,3283.8,3283.7,2.479]
[1722380232286,1.6283932,3283.8,3283.7,5.52434]
[1722380233383,0.03309795,3283.8,3283.7,5.52434]
[1722380233674,1.9143543,3284.0,3283.7,5.52434]
[1722380233849,0.03309795,3283.8,3283.7,5.52434]
[1722380234045,1.071,3284.1,3283.7,5.52434]
[1722380234046,1.59589258,3283.9,3283.8,3.04524]
[1722380234446,1.59589258,3283.9,3283.7,3.4524415]
[1722380234633,1.59589258,3283.9,3283.7,6.4977715]
[1722380234976,1.59589258,3284.1,3283.8,3.04519]
[1722380235281,1.59589258,3284.0,3283.9,3.04515]
[1722380235433,1.9143543,3284.2,3283.9,3.04515]
[1722380235633,1.59664487,3284.0,3283.9,3.04515]
[1722380235834,1.59664487,3284.0,3283.9,3.99942615]
[1722380236561,1.59696579,3284.0,3283.9,3.99942615]
[1722380237479,1.9143543,3284.2,3283.9,3.99942615]
[1722380237680,1.9143543,3284.2,3283.7,5.52429]
[1722380237837,1.59742698,3283.8,3283.7,5.52429]
[1722380238571,1.91710727,3284.0,3283.7,2.479]
[1722380238988,1.91710783,3284.0,3283.7,2.479]
[1722380239684,4.11617,3283.9,3283.5,0.8]
[1722380239869,6.03392715,3283.7,3283.5,0.8]
[1722380240053,1.91754715,3283.6,3283.5,0.8]
[1722380240349,4.11638,3283.7,3283.5,0.8]
[1722380240853,1.91794895,3283.7,3283.5,0.8]
[1722380241067,1.91794895,3283.8,3283.5,0.8]
[1722380241386,1.91794895,3283.7,3283.5,0.8]
[1722380241549,1.91794895,3283.6,3283.5,0.8]
[1722380241751,1.91813644,3283.6,3283.5,0.8]
[1722380241955,1.91813371,3283.6,3283.5,0.8]
[1722380243375,1.91813371,3283.7,3283.5,0.8]
[1722380244239,0.03287893,3283.6,3283.5,0.8]
[1722380245580,1.91844996,3283.7,3283.5,4.534595]
[1722380245738,1.91844996,3283.8,3283.6,5.35419]
[1722380245945,1.91844996,3283.8,3283.7,3.04534]
[1722380246391,1.91844996,3283.9,3283.8,3.04525]
[1722380246590,1.91844996,3283.9,3283.6,5.35423]
[1722380246591,1.91844996,3283.9,3283.6,5.35417]
[1722380246792,1.91889381,3283.8,3283.7,3.04532]
[1722380246998,1.91889381,3283.9,3283.8,3.04525]
[1722380247164,1.91889381,3284.0,3283.8,3.95362495]
[1722380247365,1.91889381,3283.9,3283.8,3.04525]
[1722380248406,4.11578,3284.3,3283.8,3.04525]
[1722380248703,1.91922433,3283.9,3283.8,3.04525]
[1722380250504,1.91922433,3284.0,3283.8,3.04525]
[1722380250665,1.91918822,3284.1,3283.9,3.04515]
[1722380250866,1.91918822,3284.0,3283.9,3.04515]
[1722380251106,1.91918822,3284.0,3283.9,3.65419]
[1722380251318,1.91918822,3284.1,3283.9,3.65419]
[1722380251473,1.91918822,3284.1,3284.0,3.04506]
[1722380251668,1.91918822,3284.1,3283.6,2.9931295]
[1722380251669,7.39,3284.4,3283.9,3.04513]
[1722380251874,1.91907735,3284.2,3284.1,3.04497]
[1722380252223,1.91885763,3284.3,3284.2,3.04479]
[1722380252565,1.91885763,3284.4,3284.3,3.04478]
[1722380252771,1.91885763,3284.4,3284.1,3.04491]
[1722380252972,1.071,3284.6,3284.0,5.44931]
[1722380252973,1.91885763,3284.2,3284.0,5.44931]
[1722380253296,2.23866723,3284.5,3284.0,5.44931]
[1722380253297,1.91885763,3284.1,3284.0,5.44931]
[1722380253502,1.91885763,3284.2,3284.0,5.44931]
[1722380253669,1.91885763,3284.2,3284.0,6.298762]
[1722380254886,3.04462,3284.5,3284.0,6.298762]
[1722380255100,1.91848237,3284.2,3284.0,5.44931]
[1722380255308,1.91848237,3284.2,3284.0,5.4493]
[1722380258414,0.03218764,3284.1,3284.0,5.4493]
[1722380262029,1.91833422,3284.2,3284.0,5.4493]
[1722380262338,0.03218764,3284.1,3284.0,5.4493]
[1722380264301,0.03218764,3284.1,3284.0,6.318745]
[1722380264501,1.91833422,3284.3,3284.0,6.318745]
[1722380264726,0.03225217,3284.1,3284.0,6.318745]
[1722380264977,1.91833422,3284.2,3284.0,6.318745]
[1722380265121,0.03225217,3284.1,3284.0,5.4493]
[1722380265635,1.91814247,3284.3,3284.0,5.4493]
[1722380265818,0.03225217,3284.1,3284.0,5.4493]
[1722380266019,1.91814247,3284.3,3284.0,5.4493]
[1722380266221,0.03228443,3284.2,3284.0,5.4493]
[1722380266402,1.91814247,3284.3,3284.0,5.4493]
[1722380266605,0.03228443,3284.2,3284.0,5.4493]
[1722380266839,0.03225217,3284.1,3284.0,6.338745]
[1722380267141,0.9504269,3284.3,3284.0,5.4493]
[1722380267317,0.03117602,3284.1,3284.0,5.4493]
[1722380267515,3.30883288,3284.6,3284.1,3.04496]
[1722380267819,1.071,3284.6,3284.1,3.04496]
[1722380268017,5.28230288,3284.7,3284.1,3.04496]
[1722380268018,5.28230288,3284.7,3284.2,0.55101542]
[1722380268399,3.04447,3284.7,3284.2,0.55101542]
[1722380268598,5.28215866,3284.7,3284.2,0.55101542]
[1722380270053,5.28213291,3284.7,3284.2,0.55101542]
[1722380270246,5.28213291,3284.7,3284.1,3.04496]
[1722380270447,5.28213291,3284.7,3284.2,3.04485]
[1722380271050,2.23766291,3284.8,3284.5,3.04454]
[1722380271255,10.03323932,3285.1,3284.6,0.304454]
[1722380271256,2.23766291,3285.0,3284.6,0.304454]
[1722380271417,10.4341,3285.1,3284.5,3.04455]
[1722380271622,1.59777433,3284.6,3284.5,5.44133655]
[1722380271826,7.39,3285.1,3284.6,3.04442]
[1722380272020,7.39,3285.1,3284.6,3.10530406]
[1722380272348,7.39,3285.1,3284.6,3.04442]
[1722380272923,1.91709534,3284.9,3284.5,2.3359]
[1722380273148,8.461,3285.1,3284.1,1.071]
[1722380273149,2.98809534,3284.7,3284.2,2.3359]
[1722380273351,1.91709534,3284.5,3284.2,2.3359]
[1722380273923,1.91709534,3284.4,3284.0,2.3359]
[1722380274153,1.91709534,3284.3,3284.0,2.3359]
[1722380274517,1.59796084,3284.1,3284.0,2.3359]
[1722380274923,0.03133073,3284.1,3284.0,2.3359]
[1722380275121,0.03133073,3284.1,3284.0,3.238506]
[1722380275450,1.6291381,3284.1,3284.0,6.283546]
[1722380275823,0.03129512,3284.1,3284.0,6.283546]
[1722380276047,1.91741158,3284.4,3284.0,2.3359]
[1722380276247,1.91741158,3284.4,3283.8,5.9811]
[1722380276248,0.03127732,3284.1,3283.8,5.9811]
[1722380276464,1.59806609,3283.9,3283.8,2.9359]
[1722380276624,0.03124505,3284.0,3283.8,5.98115]
[1722380277064,0.03124505,3284.0,3283.9,3.04515]
[1722380277361,1.91741158,3284.2,3283.9,3.04515]
[1722380277559,0.03124505,3284.0,3283.9,3.04515]
[1722380277734,1.91741158,3284.2,3283.9,3.04515]
[1722380277936,0.03124505,3284.0,3283.9,3.04515]
[1722380278236,1.62935247,3284.0,3283.9,3.04515]
[1722380278444,0.03124505,3284.0,3283.9,3.04515]
[1722380278664,1.59810028,3284.0,3283.9,3.947782]
[1722380278865,1.59810028,3284.1,3284.0,3.04506]
[1722380279172,1.91769023,3284.3,3284.0,3.04506]
[1722380279468,1.91769023,3284.3,3284.1,0.3947692]
[1722380279669,1.91769023,3284.4,3284.2,2.4684]
[1722380280037,1.91769023,3284.5,3284.2,2.4684]
[1722380280191,1.91769023,3284.6,3284.2,2.4684]
[1722380280496,1.91769023,3284.5,3284.2,2.4684]
[1722380280651,1.91769023,3284.4,3284.2,2.4684]
[1722380280850,1.91769023,3284.5,3284.2,2.4684]
[1722380281091,1.071,3284.9,3284.3,0.551337]
[1722380281388,1.91757545,3284.6,3284.3,3.596117]
[1722380282383,1.59793059,3284.4,3284.3,6.640897]
[1722380282546,1.071,3284.9,3284.4,3.04469]
[1722380282547,1.59793059,3284.5,3284.4,3.04469]
[1722380282752,1.91757545,3284.8,3284.4,3.71101529]
[1722380283062,1.59772903,3284.5,3284.4,3.71101529]
[1722380283665,1.91757545,3284.7,3284.4,3.71101529]
[1722380284582,1.91717853,3284.7,3284.4,3.71101529]
[1722380286350,1.91717853,3284.7,3284.5,0.73071323]
[1722380287782,1.91757729,3284.7,3284.5,0.73071323]
[1722380288683,1.91757729,3284.6,3284.5,0.73071323]
[1722380288886,1.91757729,3284.6,3284.5,3.77531323]
[1722380289188,1.91757729,3284.8,3284.6,3.04451]
[1722380289393,1.91757729,3284.9,3284.7,3.04441]
[1722380290220,1.91757729,3284.9,3284.8,3.04432]
[1722380290959,1.91779263,3284.9,3284.8,3.04432]
[1722380291160,1.91779263,3285.1,3285.0,3.04414]
[1722380291366,3.04364,3285.6,3285.1,3.04404]
[1722380291607,2.23723258,3285.5,3285.1,3.04404]
[1722380291817,2.23723258,3285.4,3285.1,3.04404]
[1722380291963,1.9174775,3285.2,3285.1,3.04404]
[1722380293098,1.91717164,3285.2,3285.1,3.04404]
[1722380293307,1.91717164,3285.2,3285.0,5.51502]
[1722380293499,1.91717164,3285.2,3285.0,2.4709]
[1722380293666,1.91717164,3285.1,3285.0,2.4709]
[1722380293866,1.91717164,3285.1,3285.0,5.51504]
[1722380294112,1.91717164,3285.1,3285.0,2.4709]
[1722380294311,1.91709677,3285.1,3285.0,2.4709]
[1722380294615,1.91709677,3285.2,3285.0,2.4709]
[1722380294971,1.91709677,3285.2,3285.0,5.51501]
[1722380295311,1.91709677,3285.1,3285.0,5.51501]
[1722380295781,1.91709677,3285.2,3285.0,5.51501]
[1722380296381,1.91709677,3285.1,3285.0,6.066511]
[1722380296586,1.91709677,3285.2,3285.0,5.51501]
[1722380297283,1.91709677,3285.1,3285.0,2.4709]
[1722380297484,3.04392,3285.3,3284.8,2.3698]
[1722380297687,1.91675247,3285.1,3284.8,5.4141]
[1722380298028,1.91675247,3285.1,3284.9,0.63455853]
[1722380298390,1.91675247,3285.2,3284.9,0.63455853]
[1722380300161,1.91675247,3285.2,3284.9,3.67877853]
[1722380300304,1.91675247,3285.2,3285.0,0.90928285]
[1722380301009,1.91628187,3285.2,3285.0,0.90928285]
[1722380301417,1.91628187,3285.3,3285.0,0.90928285]
[1722380302150,1.91628187,3285.2,3285.0,0.90928285]
[1722380302505,1.91628187,3285.2,3284.8,2.3698]